Cogmind - Beta 10.2 --- EXPLORER MODE // 2020.12.25 @ 14:05:48 Player: Luigi Panache Result: Destroyed by S-43 Plague with Heavy Machine Gun Performance ------------- Evolutions (9) 4500 Regions Visited (22) 4400 Robots Destroyed (257) 1285 Value Destroyed (14848) 14848 Prototype IDs (23) 460 Alien Tech Used (5) 1000 Bonus (8302) 8302 TOTAL SCORE: 34795 Bonus ------- High Alert Combat Kills 596 Follower Combat Kills 1653 Network Hubs Disabled 200 Met Warlord at Base 500 MAIN.C Attacked Warlord 500 Warlord Defense Kill 2084 Built Enhanced Grunts 300 Met R17 at Cetus 500 Met Warlord at Research 2000 Scanned by Researcher 500 Friendly Fire -531 Cogmind --------- Core Integrity 0/1600 Matter 300/300 Energy 100/100 System Corruption 13% Temperature Cool (0) Movement Core (50) Location -1/Access Parts ------- > --- POWER (3) -------- (None) > --- PROPULSION (7) --- (None) > --- UTILITY (13) ----- (None) > --- WEAPON (3) ------- (None) > --- INVENTORY (4) ---- Heavy Disruptor Cannon Core Cannon Peak State ------------ > --- POWER ------------ Light Fission Core Particle Reactor Quantum Reactor > --- PROPULSION ------- Gyrokinetic Inverter Combat Gravmag System Improved Gyrokinetic Inverter Improved Gyrokinetic Inverter Experimental Gyrokinetic Inverter Experimental Gyrokinetic Inverter Cooled Linear Gravjet > --- UTILITY ---------- Advanced Cooling System Experimental Coolant Injector Medium Storage Unit Medium Storage Unit High-capacity Storage Unit Energy Well Advanced Energy Well Advanced Targeting Computer Advanced Target Analyzer Advanced Core Analyzer Advanced Transmission Jammer Layered Light Armor Plating Centrium Light Armor Plating > --- WEAPON ----------- Helical Railgun Helical Railgun Helical Railgun > --- INVENTORY -------- Reinforced Fission Core Light Particle Reactor Improved Linear Gravjet Layered Light Armor Plating Layered Light Armor Plating Dimensional Node Initializer Subatomic Replicator Terrabomb Heavy Disruptor Cannon Core Cannon Coil Gun KE Penetrator KE Penetrator Railgun Railgun Hypervelocity Mass Driver Heavy Shock Bomb Launcher Micro-nuke Launcher [Rating: 190] Favorites ----------- Power Nuclear Core Engine Angular Momentum Engine Power Core Nuclear Core Reactor Particle Reactor Propulsion Combat Gravmag System Treads Light Treads Leg Aluminum Leg Hover Unit Combat Gravmag System Flight Unit Improved Cesium-ion Thruster Utility Medium Storage Unit Device Advanced Heat Sink Storage Medium Storage Unit Processor Advanced Core Analyzer Hackware Improved Hacking Suite Protection Improved Medium Armor Plating Artifact Phase Redirector Weapon HERF Cannon Energy Gun Small Laser Energy Cannon HERF Cannon Ballistic Gun Helical Railgun Ballistic Cannon Hypervelocity Mass Driver Launcher Heavy Shock Bomb Launcher Build | -11 -10 -9 -9 -8 -8 -7 -6 -6 -6 -6 -6 -5 -4 -4 -4 -4 -3 -3 -3 -2 -2 -1 ------- Run | Scr Mat Mat Min Mat Sto Fac Fac Ext Cet Arc Hub Fac Fac Upp Upp War Pro Res Qua Res Tes Acc Slots Evolved 19 | . 1 2 . 2 . 2 2 . . . . 2 2 . . . . 2 . 2 . 2 Power 2 | . . . . . . 1 . . . . . . . . . . . 1 . . . . Propulsion 5 | . . 1 . 2 . 1 . . . . . . . . . . . 1 . . . . Utility 11 | . 1 1 . . . . 2 . . . . 2 2 . . . . . . 2 . 1 Weapon 1 | . . . . . . . . . . . . . . . . . . . . . . 1 Parts Attached 314 | 2 9 6 . 6 21 16 13 2 2 2 2 15 38 5 2 6 1 64 39 34 9 20 Power 33 | . . . . 1 1 3 2 . . . . 1 4 1 . . . 8 4 7 1 . Engine 5 | . . . . . 1 1 2 . . . . 1 . . . . . . . . . . Core 18 | . . . . 1 . 2 . . . . . . 4 1 . . . 5 4 1 . . Reactor 10 | . . . . . . . . . . . . . . . . . . 3 . 6 1 . Propulsion 75 | 2 5 1 . 5 5 7 5 1 . . 2 3 7 . . 1 . 11 3 7 6 4 Treads 2 | 2 . . . . . . . . . . . . . . . . . . . . . . Leg . | . . . . . . . . . . . . . . . . . . . . . . . Wheel . | . . . . . . . . . . . . . . . . . . . . . . . Hover 70 | . 5 1 . 5 4 5 5 1 . . 2 3 7 . . 1 . 11 3 7 6 4 Flight 3 | . . . . . 1 2 . . . . . . . . . . . . . . . . Utility 67 | . 1 3 . . 1 3 1 1 . 2 . 5 6 1 . 1 . 18 10 10 2 2 Device 18 | . . . . . 1 1 . . . . . 2 . . . . . 7 4 2 1 . Storage 12 | . . 2 . . . . . . . . . . 2 . . . . 3 1 4 . . Processor 9 | . 1 1 . . . . . . . . . . . 1 . . . 2 1 1 1 1 Hackware 2 | . . . . . . . . . . . . 1 . . . . . 1 . . . . Protection 23 | . . . . . . 2 1 1 . 2 . 2 4 . . 1 . 5 2 2 . 1 Artifact 3 | . . . . . . . . . . . . . . . . . . . 2 1 . . Weapon 139 | . 3 2 . . 14 3 5 . 2 . . 6 21 3 2 4 1 27 22 10 . 14 Energy Gun 18 | . 3 2 . . 10 1 . . . . . . . . . . . 2 . . . . Energy Cannon 65 | . . . . . . 2 3 . . . . 4 12 . 2 1 1 14 14 7 . 5 Ballistic Gun 38 | . . . . . 2 . 2 . 1 . . 2 8 2 . . . 9 3 2 . 7 Ballistic Cannon 3 | . . . . . . . . . . . . . . . . . . 1 2 . . . Launcher 15 | . . . . . 2 . . . 1 . . . 1 1 . 3 . 1 3 1 . 2 Special Weapon . | . . . . . . . . . . . . . . . . . . . . . . . Impact Weapon . | . . . . . . . . . . . . . . . . . . . . . . . Slashing Weapon . | . . . . . . . . . . . . . . . . . . . . . . . Piercing Weapon . | . . . . . . . . . . . . . . . . . . . . . . . Special Melee Weapon . | . . . . . . . . . . . . . . . . . . . . . . . Unidentified Prototypes 26 | . . . . 1 8 2 . . . . . . 1 . . . . 2 6 4 2 . Parts Lost 54 | . . . . . 1 4 3 . 1 . . 1 3 . 1 1 . 6 10 11 . 12 Power 9 | . . . . . . . . . . . . 1 . . . . . 2 1 2 . 3 Propulsion 12 | . . . . . 1 3 2 . . . . . . . . . . . 3 . . 3 Utility 21 | . . . . . . . 1 . . . . . 3 . 1 1 . 4 3 4 . 4 Weapon 12 | . . . . . . 1 . . 1 . . . . . . . . . 3 5 . 2 Highest Loss Streak 5 | . . . . . 1 4 2 . 1 . . 1 2 . 1 1 . 2 4 5 . 4 Average Slot Usage (%) 92 | . 87 90 100 100 97 91 86 88 93 95 100 92 94 95 98 96 95 96 90 83 93 84 Engine 3 | . 12 10 10 2 7 7 6 6 6 6 6 3 5 5 5 5 5 . . . . . Core 4 | . . . . 6 . 7 6 6 6 6 6 5 4 3 5 5 5 8 8 3 4 . Reactor 1 | . . . . . . . . . . . . . . . . . . 3 3 3 7 5 Hover 29 | . 23 30 30 41 39 34 31 35 37 37 37 27 26 30 30 30 30 31 27 23 25 23 Device 8 | . . . . . 6 2 6 6 6 6 6 5 10 10 10 10 10 11 14 11 12 9 Storage 15 | . 12 18 20 16 16 14 12 12 12 12 12 11 11 20 20 20 20 13 16 21 20 17 Processor 6 | . 12 12 20 16 9 4 . . . . . . . 1 5 5 5 7 9 8 11 9 Protection 8 | . . . . . . 6 7 8 12 13 18 21 21 15 13 11 10 7 1 1 4 5 Energy Gun 3 | . 25 20 20 16 14 9 . . . . . . . . . . . . . . . . Energy Cannon 4 | . . . . . . 4 10 12 6 6 6 6 8 5 10 7 6 4 6 4 . 1 Ballistic Gun 2 | . . . . . . . 1 . 5 6 6 4 1 5 . . . 4 . 1 8 6 Naked Turns 112 | . . . . . . . . . . . . . . . . . . . . . . 112 Heaviest Build 138 | 18 18 23 20 22 29 46 53 49 49 57 57 72 129 129 129 128 123 130 129 122 120 138 Greatest Support 159 | 40 40 22 22 45 42 60 56 62 62 62 76 100 134 134 134 138 138 159 154 112 124 135 Greatest Overweight (x) 5 | . 2 1 . . 1 5 1 . . . . . 1 . . . . . 1 1 1 1 Average Overweight (x) . | . . . . . . . . . . . . . . . . . . . . . . . Largest Inventory Capacity 20 | 8 8 12 10 10 10 10 10 10 10 10 10 10 18 18 18 18 18 20 20 20 20 20 Average Capacity 14 | 8 8 9 10 10 10 10 10 10 10 10 10 10 11 18 18 18 18 17 20 20 20 18 Most Carried 20 | 7 8 8 7 10 10 10 10 8 8 9 10 10 10 12 16 17 18 20 20 20 20 20 Average Carried 13 | 7 7 7 7 9 9 9 9 8 7 7 9 9 9 10 14 16 17 16 19 17 19 18 Final Capacity 20 | 8 8 10 10 10 10 10 10 10 10 10 10 10 18 18 18 18 18 20 20 20 20 4 Final Carried 20 | 7 8 7 7 10 10 10 8 8 7 9 10 10 10 11 16 17 18 20 19 19 20 4 Class Distribution -------------------- 49% | Hacker-Mutant 22% | Machinist-Mutant 19% | Scavenger-Mutant 4% | Scavenger-Gunner 3% | Generator-Mutant Dominant Class ---------------- Hacker-Mutant | -10/Materials Hacker-Mutant | -9/Materials Hacker-Mutant | -9/Mines Hacker-Mutant | -8/Materials Hacker-Mutant | -8/Storage Hacker-Mutant | -7/Factory Hacker-Mutant | -6/Factory Hacker-Mutant | -6/Extension Hacker-Mutant | -6/Cetus Hacker-Mutant | -6/Archives Hacker-Mutant | -6/Hub_04(d) Hacker-Mutant | -5/Factory Hacker-Mutant | -4/Factory Machinist-Mutant | -4/Upper Caves Machinist-Mutant | -4/Upper Caves Machinist-Mutant | -4/Warlord Machinist-Mutant | -3/Proximity Caves Machinist-Mutant | -3/Research Generator-Mutant | -3/Quarantine Scavenger-Mutant | -2/Research Scavenger-Mutant | -2/Testing Scavenger-Gunner | -1/Access Resources | -11 -10 -9 -9 -8 -8 -7 -6 -6 -6 -6 -6 -5 -4 -4 -4 -4 -3 -3 -3 -2 -2 -1 ----------- Run | Scr Mat Mat Min Mat Sto Fac Fac Ext Cet Arc Hub Fac Fac Upp Upp War Pro Res Qua Res Tes Acc Matter Collected 6335 | 172 108 90 . 40 205 156 227 20 30 27 45 256 816 140 50 402 10 1254 395 568 257 1067 Remotely . | . . . . . . . . . . . . . . . . . . . . . . . Salvage Created 15719 | . 108 275 . . 898 1070 556 545 22 . 50 752 1966 106 237 1141 163 2347 1290 1675 404 2114 Parts 639 | . 11 11 . . 49 48 16 22 1 . 1 30 69 7 8 38 2 109 48 64 17 88 Haulers Intercepted 6 | . . 1 . . 3 2 . . . . . . . . . . . . . . . . Recyclers Shooed 2 | . . . . . . . . 1 . . . . 1 . . . . . . . . . Parts Field Recycled . | . . . . . . . . . . . . . . . . . . . . . . . Retrieved Matter . | . . . . . . . . . . . . . . . . . . . . . . . Parts Self-Destructed . | . . . . . . . . . . . . . . . . . . . . . . . Prevented . | . . . . . . . . . . . . . . . . . . . . . . . Kills | -11 -10 -9 -9 -8 -8 -7 -6 -6 -6 -6 -6 -5 -4 -4 -4 -4 -3 -3 -3 -2 -2 -1 ------- Run | Scr Mat Mat Min Mat Sto Fac Fac Ext Cet Arc Hub Fac Fac Upp Upp War Pro Res Qua Res Tes Acc Combat Hostiles Destroyed 221 | . 2 4 . . 13 18 8 8 . . . 10 26 2 3 15 2 28 19 21 5 37 Guns 83 | . 2 3 . . 11 5 1 . . . . 4 6 2 . . . 11 3 2 5 28 Cannons 35 | . . . . . . 2 2 4 . . . 3 4 . 2 . 1 3 7 7 . . AOE 42 | . . 1 . . 1 7 1 . . . . . 4 . . 11 . 2 3 5 . 7 Classes Destroyed 19 | . 2 3 . . 4 2 1 1 . . . . . . . 2 . . 2 2 . . Worker 12 | . . . . . . . 1 . . . 2 . 4 . . . . 2 2 . . 1 Builder 3 | . . . . . 1 1 . . . . . . . . . . . . 1 . . . Hauler 6 | . . 1 . . 3 2 . . . . . . . . . . . . . . . . Recycler 2 | . . 1 . . . . . . . . . 1 . . . . . . . . . . Operator 3 | . . . . . . . . 1 . . . . . . . . . 1 1 . . . Drone 7 | . . . . . . . . . . . . . . . . . . . 3 . . 4 Watcher 13 | . 1 . . . 2 . . 1 1 . . . 4 . . . . 3 . 1 . . Swarmer 29 | . . 2 . . 2 . . 3 . . . 2 3 . . . . . . 3 . 14 Grunt 85 | . 2 2 . . 3 11 5 3 . . . 3 12 . 1 11 2 5 10 3 2 10 Brawler 3 | . . . . . 1 . . 1 . . . . . . . . . . . 1 . . Duelist 2 | . . . . . . 1 . . . . . . . . . . . . . 1 . . Protector 1 | . . . . . . . . . . . . . . . . 1 . . . . . . Researcher 2 | . . . . . . . . . . . . . . . . . . . 2 . . . Sentry 23 | . . . . . 6 1 . 1 . . . 3 4 . . . . 5 . 1 . 2 Specialist 3 | . . . . . . . . . . . . . . . . 3 . . . . . . Hunter 31 | . . . . . 1 4 2 . . . . 1 1 . 2 . . 8 2 6 . 4 Programmer 30 | . . . . . . 1 1 . . . . 1 6 2 . . . 10 4 1 1 3 Striker 2 | . . . . . . . . . . . . . . . . . . . . 2 . . Executioner 3 | . . . . . . . . . . . . . . . . . . . . 3 . . Protovariant Y 1 | . . . . . . . . . . . . . . . . . . . . . 1 . Thug 1 | . . . . . . . . . . . . . . . . 1 . . . . . . Butcher 2 | . . . . . . . . 1 . . . . . . . . . . . . 1 . Best Kill Streak 11 | . 2 4 . . 6 7 3 3 1 . 2 3 5 2 2 10 2 7 11 6 3 10 Combat Bots Only 10 | . 2 2 . . 4 6 3 3 . . . 3 5 2 2 10 2 6 5 5 3 10 Max Kills in Single Turn 4 | . 1 2 . . 2 4 1 2 1 . 2 1 3 1 1 4 1 1 4 1 1 2 Gunslinging 1 | . . . . . . . . . . . . . . . . . . . . . . 1 Exploded 4 | . . 1 . . 1 4 1 . . . . . 2 . . 4 . 1 2 1 . 2 Melee . | . . . . . . . . . . . . . . . . . . . . . . . Uniques/NPCs Destroyed . | . . . . . . . . . . . . . . . . . . . . . . . Combat | -11 -10 -9 -9 -8 -8 -7 -6 -6 -6 -6 -6 -5 -4 -4 -4 -4 -3 -3 -3 -2 -2 -1 -------- Run | Scr Mat Mat Min Mat Sto Fac Fac Ext Cet Arc Hub Fac Fac Upp Upp War Pro Res Qua Res Tes Acc Damage Taken 13169 | . 3 70 . . 329 789 390 100 147 29 164 430 1210 126 56 129 65 2127 1372 1638 203 3792 Core 2792 | . 3 4 . . 18 217 32 . 16 . . 13 252 26 . 24 . 153 133 223 78 1600 Absorbed by Shields 95 | . . . . . . . . . 95 . . . . . . . . . . . . . Redirected to Core 84 | . . . . . . . . . . . . . . . . . . . . 84 . . Core Remaining (%) 87 | 100 98 . 99 . 96 69 . . . . 94 98 . . . . 73 . 70 . 77 . Volleys Fired 590 | . 4 11 . . 35 37 19 16 4 1 5 26 70 9 7 45 4 93 47 46 17 94 Largest 3 | . 2 2 . . 2 2 2 2 2 2 2 2 2 2 2 1 2 2 2 2 2 3 Hottest 302 | . 80 80 . . 95 138 138 138 138 97 97 176 176 70 176 88 176 182 300 300 76 302 Shots Fired 1105 | . 8 22 . . 60 68 38 32 7 2 10 48 139 18 13 45 8 171 79 76 34 227 Gun 592 | . 8 22 . . 58 56 8 . 1 1 5 23 62 18 . . . 87 20 14 34 175 Cannon 445 | . . . . . . 12 30 32 5 1 5 25 76 . 13 6 8 76 55 54 . 47 Launcher 68 | . . . . . 2 . . . 1 . . . 1 . . 39 . 8 4 8 . 5 Special . | . . . . . . . . . . . . . . . . . . . . . . . Kinetic 459 | . . . . . . . 8 . 1 1 5 23 62 18 . . . 91 27 14 34 175 Thermal 60 | . 8 21 . . 5 . . . . . . 5 . . . . . . 5 1 . 15 Explosive 37 | . . . . . 2 . . . 1 . . . 1 . . 23 . 8 . . . 2 Electromagnetic 549 | . . 1 . . 53 68 30 32 5 1 5 20 76 . 13 22 8 72 47 61 . 35 Robot Hit Streak 63 | . 7 25 . . 63 49 34 25 10 12 27 34 36 12 14 7 14 31 18 22 8 50 Robot Miss Streak 3 | . . . . . 2 1 1 1 1 . . 2 2 1 1 1 . 2 1 1 1 3 Penetration Max 3 | . . . . . . . . . . . . . . . . . . 1 3 . . 1 Secondary Targets 15 | . . . . . . 2 . . . . . . . . . . . 3 2 . . 8 Max Gunslinging Chain 1 | . . . . . . 1 . . . . . . . . . . . 1 1 . . 1 Shots Hit Robots 907 | . 7 18 . . 54 65 34 29 6 2 5 41 121 15 11 11 7 140 60 61 27 193 Core Hits 532 | . 5 10 . . 37 40 14 9 6 3 13 35 47 4 5 50 3 67 30 47 11 96 Critical Hits 83 | . . . . . . 1 . . . . . 1 2 2 . . 1 20 9 8 4 35 Critical Kills 19 | . . . . . . 1 . . . . . . . 1 . . . 5 1 2 2 7 Critical Parts Destroyed 50 | . . . . . . . . . . . . 1 2 1 . . 1 11 8 3 2 21 Melee Attacks . | . . . . . . . . . . . . . . . . . . . . . . . Impact . | . . . . . . . . . . . . . . . . . . . . . . . Slashing . | . . . . . . . . . . . . . . . . . . . . . . . Piercing . | . . . . . . . . . . . . . . . . . . . . . . . Sneak Attacks . | . . . . . . . . . . . . . . . . . . . . . . . Combat Hostiles . | . . . . . . . . . . . . . . . . . . . . . . . Follow-up Attacks . | . . . . . . . . . . . . . . . . . . . . . . . Damage Inflicted 37733 | . 84 310 . . 1440 2118 1278 963 605 68 323 1222 5491 457 435 3121 271 5224 4526 2745 843 6209 Guns 13734 | . 78 211 . . 1165 956 170 . 31 38 102 515 1784 457 . . . 2097 514 405 839 4372 Cannons 14678 | . . . . . . 312 855 854 105 25 80 707 2342 . 435 41 271 2529 3382 1573 . 1167 Explosions 8950 | . . 99 . . 275 833 238 44 469 . 141 . 1254 . . 3080 . 598 514 767 . 638 Melee . | . . . . . . . . . . . . . . . . . . . . . . . Ramming 371 | . 6 . . . . 17 15 65 . 5 . . 111 . . . . . 116 . 4 32 Kinetic 11465 | . . . . . . . 170 . 31 38 102 515 1784 457 . . . 2082 670 405 839 4372 Thermal 6639 | . 78 295 . . 330 833 238 44 437 . . 110 85 . . 1092 . . 2100 369 . 628 Explosive 2305 | . . . . . . . . . 32 . . . 1096 . . 57 . 598 170 . . 352 Electromagnetic 16953 | . . 15 . . 1110 1268 855 854 105 25 221 597 2415 . 435 1972 271 2544 1470 1971 . 825 Impact . | . . . . . . . . . . . . . . . . . . . . . . . Slashing . | . . . . . . . . . . . . . . . . . . . . . . . Piercing . | . . . . . . . . . . . . . . . . . . . . . . . Highest Corruption 13 | . . . . . . 1 . . . . . 1 9 10 10 10 . 5 12 1 1 13 Average Corruption 3 | . . . . . . 1 . . . . . 1 4 9 10 10 . 2 7 1 1 3 Corruption Purged 5 | . . . . . . . . . . . . . . . . . . 5 . . . . Effects 108 | . . . . . . 3 . . . . . . 17 4 16 1 . 23 25 4 4 11 Message Errors 23 | . . . . . . 2 . . . . . . 2 . 2 1 . 6 6 1 1 2 Matter Fused 13 | . . . . . . . . . . . . . 4 1 4 . . . 4 . . . Heat Flow Errors 10 | . . . . . . . . . . . . . 1 . 2 . . 2 3 . . 2 Energy Discharges 22 | . . . . . . . . . . . . . 5 . 2 . . 4 4 2 2 3 Parts Rejected 3 | . . . . . . . . . . . . . . 1 . . . . 2 . . . Data Loss (minor) 15 | . . . . . . 1 . . . . . . 2 1 1 . . 4 3 . 1 2 Data Loss (major) 3 | . . . . . . . . . . . . . . 1 1 . . . 1 . . . Misfires 1 | . . . . . . . . . . . . . . . . . . . 1 . . . Alerts 1 | . . . . . . . . . . . . . . . 1 . . . . . . . Misdirections 3 | . . . . . . . . . . . . . . . 2 . . . . . . 1 Targeting Errors 10 | . . . . . . . . . . . . . 3 . 1 . . 4 1 1 . . Weapon Failures 4 | . . . . . . . . . . . . . . . . . . 3 . . . 1 Overload Shots . | . . . . . . . . . . . . . . . . . . . . . . . Overflow Damage 1502 | . . . . . 13 36 81 54 . . . 8 175 . . 113 24 87 873 38 . . Projectiles 1031 | . . . . . . . 36 19 . . . 8 41 . . . 24 82 789 32 . . Explosions 412 | . . . . . 13 36 45 . . . . . 110 . . 113 . 5 84 6 . . Melee 59 | . . . . . . . . 35 . . . . 24 . . . . . . . . . Knockbacks 2 | . . . . . . . . . . . . . . . . . . . 2 . . . Impact 1 | . . . . . . . . . . . . . . . . . . . 1 . . . Kinetic 1 | . . . . . . . . . . . . . . . . . . . 1 . . . Secondary . | . . . . . . . . . . . . . . . . . . . . . . . Self-Inflicted Damage 756 | . 3 20 . . 93 226 55 32 . 2 69 . 75 . . 19 . . 118 27 2 15 Shots 21 | . . 1 . . 4 6 1 . . . 1 . 1 . . 2 . . 1 4 . . Rammed 23 | . 1 . . . . 1 1 1 . 1 . . 2 . . . . . 9 . 1 6 Targets Rammed 23 | . 1 . . . . 1 1 1 . 1 . . 2 . . . . . 9 . 1 6 Kicked . | . . . . . . . . . . . . . . . . . . . . . . . Crushed . | . . . . . . . . . . . . . . . . . . . . . . . Highest Temperature 544 | . 26 126 . . 171 459 189 162 55 9 30 244 544 . 372 172 219 465 448 196 14 199 Average Temperature 117 | . 14 63 . . 57 132 69 62 24 6 15 111 189 . 121 30 118 136 138 81 4 80 Received Heat Transfer 1578 | . . 36 . . 81 204 126 27 12 . 36 135 192 . . 24 21 162 198 54 63 207 Effects 66 | . . . . . . 12 . . . . . . 26 . 2 . . 22 4 . . . Shutdowns 23 | . . . . . . 2 . . . . . . 10 . 1 . . 9 1 . . . Energy Bleed 7 | . . . . . . 1 . . . . . . 2 . 1 . . 3 . . . . Interference 22 | . . . . . . 7 . . . . . . 7 . . . . 5 3 . . . Matter Decay 3 | . . . . . . 1 . . . . . . . . . . . 2 . . . . Short Circuit 2 | . . . . . . . . . . . . . 2 . . . . . . . . . Damage (minor) 5 | . . . . . . 1 . . . . . . 1 . . . . 3 . . . . Damage (major) 3 | . . . . . . . . . . . . . 3 . . . . . . . . . Damage (core) 1 | . . . . . . . . . . . . . 1 . . . . . . . . . Siege Activations . | . . . . . . . . . . . . . . . . . . . . . . . Robots Corrupted 62 | . . . . . 1 4 4 4 . . . 3 12 . 1 4 1 13 6 7 . 2 Combat Hostiles 60 | . . . . . 1 4 4 4 . . . 3 12 . 1 4 1 12 6 6 . 2 Parts Fried 154 | . . . . . 5 12 6 7 2 . . 10 31 . 8 5 8 29 13 16 . 2 Impact Corruptions 2 | . . . . . . . . 1 . . . . 1 . . . . . . . . . Robots Melted . | . . . . . . . . . . . . . . . . . . . . . . . Combat Hostiles . | . . . . . . . . . . . . . . . . . . . . . . . Parts Melted 5 | . . . . . 1 1 . 1 . . . . . . . 1 . . . 1 . . Heat Transferred 4121 | . 175 600 . . 525 750 150 50 400 . . 75 50 . . 900 . . . 100 . 346 Parts Sabotaged . | . . . . . . . . . . . . . . . . . . . . . . . Parts Stolen . | . . . . . . . . . . . . . . . . . . . . . . . Parts Stripped . | . . . . . . . . . . . . . . . . . . . . . . . Power Chain Reactions 22 | . . 1 . . 6 6 . 1 2 . . . . . . 5 . . . 1 . . Missiles Intercepted . | . . . . . . . . . . . . . . . . . . . . . . . Alert | -11 -10 -9 -9 -8 -8 -7 -6 -6 -6 -6 -6 -5 -4 -4 -4 -4 -3 -3 -3 -2 -2 -1 ------- Run | Scr Mat Mat Min Mat Sto Fac Fac Ext Cet Arc Hub Fac Fac Upp Upp War Pro Res Qua Res Tes Acc Peak Influence 909 | . 87 180 12 15 433 318 692 480 368 167 244 589 909 . . . . 512 530 426 188 559 Initial 249 | . . 25 12 . 4 30 7 249 4 102 39 87 150 . . . . 20 155 24 52 10 Average 212 | . 38 69 5 . 152 90 406 265 211 129 102 220 266 . . . . 314 276 198 71 308 Maximum Alert Level 3 | . . . . . 2 1 2 2 1 . 1 2 3 . . . . 2 2 2 . 2 Low Security (%) 54 | 100 100 100 100 100 73 88 28 21 59 100 83 52 43 . . . . 27 40 51 100 23 Level 1 30 | . . . . . 23 11 . 67 40 . 16 32 41 . . . . 36 38 33 . 55 Level 2 14 | . . . . . 3 . 71 10 . . . 14 6 . . . . 35 20 14 . 20 Level 3 1 | . . . . . . . . . . . . . 8 . . . . . . . . . Level 4 . | . . . . . . . . . . . . . . . . . . . . . . . Level 5 . | . . . . . . . . . . . . . . . . . . . . . . . High Security . | . . . . . . . . . . . . . . . . . . . . . . . Max Security . | . . . . . . . . . . . . . . . . . . . . . . . Squads Dispatched 41 | . 1 . . . 2 4 2 . 1 . . 4 7 . . . . 8 5 2 1 4 Investigation 15 | . 1 . . . 1 1 2 . 1 . . 1 3 . . . . 2 2 . 1 . Extermination 12 | . . . . . . 1 . . . . . 2 2 . . . . 3 1 . . 3 Reinforcement 12 | . . . . . 1 2 . . . . . 1 . . . . . 3 2 2 . 1 Assault 2 | . . . . . . . . . . . . . 2 . . . . . . . . . Garrison . | . . . . . . . . . . . . . . . . . . . . . . . Intercept . | . . . . . . . . . . . . . . . . . . . . . . . Construction Impeded 1 | . . . . . . . . . . . . 1 . . . . . . . . . . Haulers Reinforced 3 | . . . . . . 1 . . . . . . . . . . . 1 . 1 . . Stealth | -11 -10 -9 -9 -8 -8 -7 -6 -6 -6 -6 -6 -5 -4 -4 -4 -4 -3 -3 -3 -2 -2 -1 --------- Run | Scr Mat Mat Min Mat Sto Fac Fac Ext Cet Arc Hub Fac Fac Upp Upp War Pro Res Qua Res Tes Acc Distress Signals 20 | . . 1 . 1 1 . . 2 2 . 1 . 3 . . 3 . 2 . 3 1 . Communications Jammed 14 | . . . . . . . . . . . . . . . . . . . . . 3 11 Distress Signals 13 | . . . . . . . . . . . . . . . . . . . . . 3 10 Times Spotted 389 | . 3 9 . 1 16 21 9 16 15 4 7 16 41 2 4 37 2 43 29 40 16 58 Peak Tracking Total 13 | . 1 5 . 2 4 5 3 7 5 2 4 5 4 1 3 13 2 6 6 7 2 13 Tactical Retreats 35 | . . 2 . . . . 2 4 . . 1 . 4 . . 3 . 3 3 7 1 5 Traps | -11 -10 -9 -9 -8 -8 -7 -6 -6 -6 -6 -6 -5 -4 -4 -4 -4 -3 -3 -3 -2 -2 -1 ------- Run | Scr Mat Mat Min Mat Sto Fac Fac Ext Cet Arc Hub Fac Fac Upp Upp War Pro Res Qua Res Tes Acc Traps Triggered 16 | . 2 . . . . 1 1 2 . . . . 2 . . . . 2 6 . . . Indirectly . | . . . . . . . . . . . . . . . . . . . . . . . Trap Hack Attempts . | . . . . . . . . . . . . . . . . . . . . . . . Triggered . | . . . . . . . . . . . . . . . . . . . . . . . Disarmed 4 | . . . . . . . . . . . . . . . . . . . . . 4 . Reprogrammed . | . . . . . . . . . . . . . . . . . . . . . . . Reused . | . . . . . . . . . . . . . . . . . . . . . . . Traps Extracted . | . . . . . . . . . . . . . . . . . . . . . . . Installed . | . . . . . . . . . . . . . . . . . . . . . . . Triggered 5 | . . . . . . . . . . . . . . . . 5 . . . . . . Machines | -11 -10 -9 -9 -8 -8 -7 -6 -6 -6 -6 -6 -5 -4 -4 -4 -4 -3 -3 -3 -2 -2 -1 ---------- Run | Scr Mat Mat Min Mat Sto Fac Fac Ext Cet Arc Hub Fac Fac Upp Upp War Pro Res Qua Res Tes Acc Machines Disabled 49 | . . . . . 1 9 4 . 2 . 7 . 15 . 1 . . 1 7 . . 2 Max in Single Turn 6 | . . . . . 1 6 3 . . . 6 . 4 . 1 . . 1 1 . . 1 Garrison Access 6 | . . . . . . 2 . . . . . . 1 . . . . 1 . . . 2 Network Hub 1 | . . . . . . . . . . . 1 . . . . . . . . . . . Machines Sabotaged . | . . . . . . . . . . . . . . . . . . . . . . . Garrisons Compromised . | . . . . . . . . . . . . . . . . . . . . . . . Overloaded Fab Kills . | . . . . . . . . . . . . . . . . . . . . . . . Fab Network Shutdowns 4 | . . . . . . . 1 . . . . 1 1 . . . . 1 . . . . Hacking | -11 -10 -9 -9 -8 -8 -7 -6 -6 -6 -6 -6 -5 -4 -4 -4 -4 -3 -3 -3 -2 -2 -1 --------- Run | Scr Mat Mat Min Mat Sto Fac Fac Ext Cet Arc Hub Fac Fac Upp Upp War Pro Res Qua Res Tes Acc Machines Accessed 80 | . 2 3 . . 5 7 2 13 1 . 5 5 13 . . . . 6 9 . 3 6 Terminals 51 | . 2 3 . . 3 1 . 13 1 . 5 3 7 . . . . 2 7 . 2 2 Fabricators 7 | . . . . . . . 1 . . . . 2 3 . . . . 1 . . . . Repair Stations 9 | . . . . . 1 2 . . . . . . 1 . . . . 2 1 . 1 1 Recycling Units 4 | . . . . . 1 2 . . . . . . 1 . . . . . . . . . Scanalyzers 2 | . . . . . . . 1 . . . . . . . . . . . . . . 1 Garrison Access 7 | . . . . . . 2 . . . . . . 1 . . . . 1 1 . . 2 Total Hacks 292 | . 6 13 . . 21 19 8 29 3 . 12 38 53 . . . . 23 31 . 20 16 Successful 162 | . . 10 . . 16 12 8 14 . . 7 31 29 . . . . 11 8 . 11 5 Failed 130 | . 6 3 . . 5 7 . 15 3 . 5 7 24 . . . . 12 23 . 9 11 Catastrophic 18 | . 2 . . . . . . 2 1 . . 2 1 . . . . 3 4 . 1 2 Database Lockouts . | . . . . . . . . . . . . . . . . . . . . . . . Manual 156 | . 6 13 . . 8 9 . 12 1 . 10 27 23 . . . . 5 19 . 15 8 Terminals 187 | . 6 13 . . 9 3 . 29 3 . 12 31 27 . . . . 5 24 . 17 8 Fabricators 33 | . . . . . . . 3 . . . . 7 17 . . . . 6 . . . . Repair Stations 38 | . . . . . 8 4 . . . . . . 6 . . . . 9 4 . 3 4 Recycling Units 14 | . . . . . 4 8 . . . . . . 2 . . . . . . . . . Scanalyzers 7 | . . . . . . . 5 . . . . . . . . . . . . . . 2 Garrison Access 13 | . . . . . . 4 . . . . . . 1 . . . . 3 3 . . 2 Terminal Hacks 79 | . . 8 . . 4 . . 14 . . 5 20 10 . . . . 1 7 . 8 2 Part Schematic 8 | . . 2 . . . . . 1 . . . 4 . . . . . . 1 . . . Robot Schematic 1 | . . . . . . . . . . . . . 1 . . . . . . . . . Robot Analysis 1 | . . 1 . . . . . . . . . . . . . . . . . . . . Prototype ID Bank 1 | . . . . . . . . . . . . . 1 . . . . . . . . . Open Door 10 | . . . . . 1 . . 9 . . . . . . . . . . . . . . Level Access Points 6 | . . . . . 1 . . 1 . . . 1 1 . . . . . 1 . 1 . Branch Access Points 5 | . . 1 . . . . . . . . . 1 1 . . . . 1 1 . . . Machine Index 2 | . . . . . . . . . . . . 1 . . . . . . . . 1 . Terminal Index 4 | . . 1 . . . . . . . . 1 1 . . . . . . . . 1 . Fabricator Index 2 | . . . . . . . . . . . . 1 1 . . . . . . . . . Unreport Threat 16 | . . 1 . . 1 . . 2 . . 2 3 2 . . . . . 1 . 3 1 Disarm Traps 1 | . . . . . . . . . . . . . . . . . . . . . 1 . Dispatch Records 1 | . . . . . . . . . . . . 1 . . . . . . . . . . Security Status 1 | . . . . . . . . . . . . 1 . . . . . . . . . . Patrol Status 1 | . . . . . . . . . . . . 1 . . . . . . . . . . Recall Investigation 3 | . . . . . . . . . . . . . 1 . . . . . 1 . . 1 Hauler Manifests 1 | . . . . . . . . . . . . 1 . . . . . . . . . . Registered Prototypes 2 | . . 2 . . . . . . . . . . . . . . . . . . . . Zone Layout 13 | . . . . . 1 . . 1 . . 2 4 2 . . . . . 2 . 1 . Fabricator Hacks 20 | . . . . . . . 3 . . . . 6 8 . . . . 3 . . . . Load Schematic 9 | . . . . . . . 1 . . . . 2 4 . . . . 2 . . . . Build 11 | . . . . . . . 2 . . . . 4 4 . . . . 1 . . . . Repair Station Hacks 25 | . . . . . 8 4 . . . . . . 4 . . . . 6 1 . 1 1 Scan Component 14 | . . . . . 4 2 . . . . . . 2 . . . . 3 1 . 1 1 Repair 11 | . . . . . 4 2 . . . . . . 2 . . . . 3 . . . . Recycling Unit Hacks 3 | . . . . . 1 2 . . . . . . . . . . . . . . . . Retrieve Matter 1 | . . . . . . 1 . . . . . . . . . . . . . . . . Retrieve Components 2 | . . . . . 1 1 . . . . . . . . . . . . . . . . Scanalyzer 5 | . . . . . . . 5 . . . . . . . . . . . . . . . Insert Component 2 | . . . . . . . 2 . . . . . . . . . . . . . . . Analyze 3 | . . . . . . . 3 . . . . . . . . . . . . . . . Garrison Access Hacks 6 | . . . . . . 2 . . . . . . 1 . . . . 1 . . . 2 Seal Access 6 | . . . . . . 2 . . . . . . 1 . . . . 1 . . . 2 Unauthorized Hacks 24 | . . 2 . . 3 4 . . . . 2 5 6 . . . . . . . 2 . Terminals 13 | . . 2 . . 1 . . . . . 2 4 2 . . . . . . . 2 . Track 1 | . . . . . . . . . . . . 1 . . . . . . . . . . Assimilate 1 | . . . . . . . . . . . . . . . . . . . . . 1 . Botnet 8 | . . 2 . . 1 . . . . . 1 2 2 . . . . . . . . . Disrupt 1 | . . . . . . . . . . . 1 . . . . . . . . . . . Operators 2 | . . . . . . . . . . . . 1 . . . . . . . . 1 . Fabricators 3 | . . . . . . . . . . . . 1 2 . . . . . . . . . Prioritize 2 | . . . . . . . . . . . . 1 1 . . . . . . . . . Siphon 1 | . . . . . . . . . . . . . 1 . . . . . . . . . Repair Stations . | . . . . . . . . . . . . . . . . . . . . . . . Recycling Units 8 | . . . . . 2 4 . . . . . . 2 . . . . . . . . . Reject 4 | . . . . . 1 2 . . . . . . 1 . . . . . . . . . Mask 4 | . . . . . 1 2 . . . . . . 1 . . . . . . . . . Scanalyzers . | . . . . . . . . . . . . . . . . . . . . . . . Garrison Access . | . . . . . . . . . . . . . . . . . . . . . . . Data Cores Recovered 2 | . . . . . . . . 1 . . . . . . . . . . 1 . . . Used 2 | . . . . . . . . 1 . . . . . . . . . . 1 . . . Hacking Detections 65 | . 2 2 . . 5 6 2 11 1 . 4 4 9 . . . . 5 8 . 2 4 Full Trace Events 12 | . 2 . . . 1 1 2 . 1 . . 1 1 . . . . 1 1 . 1 . Feedback Events 2 | . . . . . . 1 . . . . . . 1 . . . . . . . . . Corruption 2 | . . . . . . 1 . . . . . . 1 . . . . . . . . . Feedback Blocked . | . . . . . . . . . . . . . . . . . . . . . . . Robot Schematics Acquired 1 | . . . . . . . . . . . . . 1 . . . . . . . . . Robots Built . | . . . . . . . . . . . . . . . . . . . . . . . Matter . | . . . . . . . . . . . . . . . . . . . . . . . Time . | . . . . . . . . . . . . . . . . . . . . . . . Total Robot Build Rating . | . . . . . . . . . . . . . . . . . . . . . . . Part Schematics Acquired 10 | . . 2 . . . . 2 1 . . . 4 . . . . . . 1 . . . Parts Built 15 | . . . . . . . 4 . . . . 5 4 . . . . 2 . . . . Matter 1907 | . . . . . . . 248 . . . . 958 489 . . . . 212 . . . . Time 581 | . . . . . . . 62 . . . . 367 99 . . . . 53 . . . . Total Part Build Rating 75 | . . . . . . . 8 . . . . 35 20 . . . . 12 . . . . Parts Repaired 11 | . . . . . 4 2 . . . . . . 2 . . . . 3 . . . . Time 436 | . . . . . 203 130 . . . . . . 41 . . . . 62 . . . . Parts Recycled . | . . . . . . . . . . . . . . . . . . . . . . . Recycled Matter . | . . . . . . . . . . . . . . . . . . . . . . . Retrieved Matter . | . . . . . . . . . . . . . . . . . . . . . . . Retrieved Components 9 | . . . . . 9 . . . . . . . . . . . . . . . . . Parts Scanalyzed 2 | . . . . . . . 2 . . . . . . . . . . . . . . . Part Schematics Acquired 2 | . . . . . . . 2 . . . . . . . . . . . . . . . Parts Damaged . | . . . . . . . . . . . . . . . . . . . . . . . Bothacking | -11 -10 -9 -9 -8 -8 -7 -6 -6 -6 -6 -6 -5 -4 -4 -4 -4 -3 -3 -3 -2 -2 -1 ------------ Run | Scr Mat Mat Min Mat Sto Fac Fac Ext Cet Arc Hub Fac Fac Upp Upp War Pro Res Qua Res Tes Acc Used RIF Installer . | . . . . . . . . . . . . . . . . . . . . . . . Robots Hacked . | . . . . . . . . . . . . . . . . . . . . . . . Non-combat . | . . . . . . . . . . . . . . . . . . . . . . . Combat . | . . . . . . . . . . . . . . . . . . . . . . . Robot Hacks Applied . | . . . . . . . . . . . . . . . . . . . . . . . Relay Couplers Released 7 | . . . . . . . . . . . . . 4 . . . . . . 3 . . Programmers 7 | . . . . . . . . . . . . . 4 . . . . . . 3 . . Robots Rewired 2 | . . . . . . . . . . . . . 1 . . . . . . 1 . . Allies Hacked . | . . . . . . . . . . . . . . . . . . . . . . . Hacks Repelled . | . . . . . . . . . . . . . . . . . . . . . . . Allies | -11 -10 -9 -9 -8 -8 -7 -6 -6 -6 -6 -6 -5 -4 -4 -4 -4 -3 -3 -3 -2 -2 -1 -------- Run | Scr Mat Mat Min Mat Sto Fac Fac Ext Cet Arc Hub Fac Fac Upp Upp War Pro Res Qua Res Tes Acc Total Allies 21 | . . . . . . . . 13 5 . . . 1 . . . . . . 1 1 . Largest Group 10 | . . . . . . . . 8 10 7 4 4 1 . . . . . . 1 1 1 Highest-Rated Group 723 | . . . . . . . . 351 723 559 362 362 75 . . . . . . 64 10 10 Highest-Rated Ally 156 | . . . . . . . . 156 156 149 94 94 75 . . . . . . 64 10 10 Total Orders . | . . . . . . . . . . . . . . . . . . . . . . . Ally Attacks 205 | . . . . . . . . 16 113 28 13 28 2 . . . . . . 5 . . Total Damage 6604 | . . . . . . . . 319 3434 1174 487 901 73 . . . . . . 216 . . Kills 38 | . . . . . . . . . 18 4 5 11 . . . . . . . . . . Allies Corrupted . | . . . . . . . . . . . . . . . . . . . . . . . Allies Melted . | . . . . . . . . . . . . . . . . . . . . . . . Intel | -11 -10 -9 -9 -8 -8 -7 -6 -6 -6 -6 -6 -5 -4 -4 -4 -4 -3 -3 -3 -2 -2 -1 ------- Run | Scr Mat Mat Min Mat Sto Fac Fac Ext Cet Arc Hub Fac Fac Upp Upp War Pro Res Qua Res Tes Acc Robot Analysis Total 1 | . . 1 . . . . . . . . . . . . . . . . . . . . Derelict Logs Recovered 2 | . . . . . . . . . . . . . . . 2 . . . . . . . Drone Launches . | . . . . . . . . . . . . . . . . . . . . . . . Drone Recoveries . | . . . . . . . . . . . . . . . . . . . . . . . Exploration | -11 -10 -9 -9 -8 -8 -7 -6 -6 -6 -6 -6 -5 -4 -4 -4 -4 -3 -3 -3 -2 -2 -1 ------------- Run | Scr Mat Mat Min Mat Sto Fac Fac Ext Cet Arc Hub Fac Fac Upp Upp War Pro Res Qua Res Tes Acc Turns Passed 13829 | 3 147 193 856 80 728 1026 343 477 327 108 189 879 1546 177 385 673 206 1726 841 1206 497 1216 Spaces Moved 10526 | 1 162 248 63 98 368 608 219 665 169 76 231 365 1107 226 319 795 316 1332 748 1015 437 958 Core 211 | . . . . . . . . . . . . . . . . . . . . . . 211 Treads 5 | 1 4 . . . . . . . . . . . . . . . . . . . . . Legs . | . . . . . . . . . . . . . . . . . . . . . . . Wheels . | . . . . . . . . . . . . . . . . . . . . . . . Hover 10309 | . 158 248 63 98 368 607 219 665 169 76 231 365 1107 226 319 795 316 1332 748 1015 437 747 Flight 1 | . . . . . . 1 . . . . . . . . . . . . . . . . Fastest Speed 34 | 160 56 52 52 42 42 36 36 36 36 36 36 40 50 53 53 53 56 44 47 54 48 34 Average Speed 55 | 160 59 53 52 43 47 60 42 38 36 36 36 45 57 53 53 53 56 46 75 80 84 42 Slowest Speed 360 | 160 180 112 52 52 111 360 105 40 36 36 40 58 142 53 53 56 56 56 128 126 89 88 Overloaded Moves . | . . . . . . . . . . . . . . . . . . . . . . . Propulsion Burnouts . | . . . . . . . . . . . . . . . . . . . . . . . Robots Hopped . | . . . . . . . . . . . . . . . . . . . . . . . Cave-ins Triggered . | . . . . . . . . . . . . . . . . . . . . . . . Exploration Rate (%) 37 | 2 33 33 14 9 71 21 6 80 55 64 27 8 32 43 47 66 52 30 64 26 45 28 Regions Visited 22 Branch Regions 12 Pre-discovered Areas 1 | . . . . . . . . . . . . . . . 1 . . . . . . . Known Exits Taken 22 | 1 1 1 1 1 1 1 1 1 1 1 1 1 1 1 1 1 1 1 1 1 1 . Unknown Exits Taken . | . . . . . . . . . . . . . . . . . . . . . . . Scrap Searched 3 | . . . . . . . . . . . . . . . 2 . 1 . . . . . Spaces Dug 8 | . . . . . . . . . . . . 1 . . . 7 . . . . . . Terrain Destroyed 730 | . . 5 . . 45 54 55 9 21 . 134 2 126 6 . 147 . 22 46 14 11 33 Melee . | . . . . . . . . . . . . . . . . . . . . . . . Projectile 82 | . . . . . . . . . . . . 2 14 6 . . . 1 19 3 11 26 AOE 648 | . . 5 . . 45 54 55 9 21 . 134 . 112 . . 147 . 21 27 11 . 7 Terrain Rammed . | . . . . . . . . . . . . . . . . . . . . . . . Walls Destroyed . | . . . . . . . . . . . . . . . . . . . . . . . Machines Disabled . | . . . . . . . . . . . . . . . . . . . . . . . Actions | -11 -10 -9 -9 -8 -8 -7 -6 -6 -6 -6 -6 -5 -4 -4 -4 -4 -3 -3 -3 -2 -2 -1 --------- Run | Scr Mat Mat Min Mat Sto Fac Fac Ext Cet Arc Hub Fac Fac Upp Upp War Pro Res Qua Res Tes Acc Total 17393 | 2 203 284 885 132 860 1198 429 850 427 152 324 1029 1884 262 520 995 336 2260 936 1324 528 1573 Wait 5671 | . 21 17 823 26 410 520 171 153 253 72 84 604 625 21 188 150 15 718 65 199 59 477 Move 10503 | . 161 247 62 97 367 607 218 664 168 75 230 364 1105 225 318 794 315 1331 747 1014 436 958 Hop . | . . . . . . . . . . . . . . . . . . . . . . . Pick Up 90 | . 2 . . 1 8 7 2 . . 1 1 6 13 2 5 . 1 16 8 8 . 9 Fast Attach 130 | . 5 4 . 4 15 8 2 2 . 1 . 7 7 1 . 1 . 23 24 19 5 2 Attach 58 | . 1 1 . . 1 3 4 . 1 . . 3 5 1 . . . 4 10 12 1 11 Detach 17 | . 1 . . . 1 . 2 . . . . 2 . . . . . 2 3 3 1 2 Swap 128 | 2 3 1 . 2 5 5 7 . 1 1 2 5 26 3 2 5 1 37 7 3 3 7 Drop 150 | . 4 3 . 2 18 10 3 . . . 2 12 22 . . . . 36 16 10 5 7 Fire 590 | . 4 11 . . 35 37 19 16 4 1 5 26 70 9 7 45 4 93 47 46 17 94 Melee . | . . . . . . . . . . . . . . . . . . . . . . . Ram 23 | . 1 . . . . 1 1 1 . 1 . . 2 . . . . . 9 . 1 6 Kick . | . . . . . . . . . . . . . . . . . . . . . . . Crush . | . . . . . . . . . . . . . . . . . . . . . . . Escape Stasis 17 | . . . . . . . . 12 . . . . 5 . . . . . . . . . Rewire 16 | . . . . . . . . 2 . . . . 4 . . . . . . 10 . . Trap . | . . . . . . . . . . . . . . . . . . . . . . . Miscellaneous . | . . . . . . . . . . . . . . . . . . . . . . . Route ------- -11/Scrapyard -10/Materials -9/Materials (discovered 2 exits: *Min x2) -9/Mines -8/Materials -8/Storage -7/Factory -6/Factory -6/Extension (discovered 3 exits: *Fac x2 / *Cet) -6/Cetus (discovered 2 exits: *Fac / *Arc) -6/Archives -6/Hub_04(d) -5/Factory (discovered 6 exits: *Fac x4 / Upp x2) -4/Factory (discovered 6 exits: *Res x4 / *Upp x2) -4/Upper Caves -4/Upper Caves -4/Warlord -3/Proximity Caves -3/Research (discovered 3 exits: Arm / *Qua x2) -3/Quarantine -2/Research -2/Testing -1/Access History --------- Turn | Location | Event 4 | -11/Scrapyard | Identified exit to Materials 4 | -11/Scrapyard | Discovered exit to Materials (range 0) 4 | -11/Scrapyard | Entered Materials 4 | -10/Materials | Evolved 1 slot: Utility x1 134 | -10/Materials | Identified exit to Materials 134 | -10/Materials | Discovered exit to Materials (range 16) 151 | -10/Materials | Entered another Materials area 151 | -9/Materials | Evolved 2 slots: Propulsion x1, Utility x1 163 | -9/Materials | Identified exit to Mines 163 | -9/Materials | Discovered exit to Mines (range 16) 325 | -9/Materials | Build established: Hacker-Mutant 344 | -9/Materials | Entered Mines 375 | -9/Mines | Identified exit to Materials 375 | -9/Mines | Discovered exit to Materials (range 3) 1200 | -9/Mines | Entered Materials 1200 | -8/Materials | Evolved 2 slots: Propulsion x2 1219 | -8/Materials | Identified exit to Storage 1219 | -8/Materials | Discovered exit to Storage (range 9) 1280 | -8/Materials | Entered Storage 1532 | -8/Storage | Identified exit to Factory 1725 | -8/Storage | Repaired Hvy. EM Shotgun 1778 | -8/Storage | Repaired Imp. EM Shotgun 1811 | -8/Storage | Repaired Imp. Hover Unit 1873 | -8/Storage | Repaired Aerolev Unit 2008 | -8/Storage | Entered Factory 2008 | -7/Factory | Evolved 2 slots: Power x1, Propulsion x1 2493 | -7/Factory | Repaired Cld. Airjet 2740 | -7/Factory | Lost 4 parts (3n1w) 2873 | -7/Factory | Repaired Aerolev Unit 2915 | -7/Factory | Identified exit to Factory 2915 | -7/Factory | Discovered exit to Factory (range 16) 3034 | -7/Factory | Entered another Factory area 3034 | -6/Factory | Evolved 2 slots: Utility x2 3077 | -6/Factory | Fabricated Imp. Hover Unit (x2) 3112 | -6/Factory | Fabricated Imp. Hover Unit (x2) 3132 | -6/Factory | Local fabrication network quarantined 3360 | -6/Factory | Identified exit to Extension 3360 | -6/Factory | Discovered exit to Extension (range 10) 3377 | -6/Factory | Entered Extension 3407 | -6/Extension | Spotted B-75 Beast 3465 | -6/Extension | Rescued a captive Derelict 3564 | -6/Extension | Rescued a captive Derelict 3564 | -6/Extension | Rescued a captive Derelict 3574 | -6/Extension | Identified exit to Factory 3595 | -6/Extension | Rescued a captive Derelict 3611 | -6/Extension | Spotted B-75 Beast 3621 | -6/Extension | Rescued a captive Derelict 3738 | -6/Extension | Rescued a captive Derelict 3739 | -6/Extension | Rescued a captive Derelict 3772 | -6/Extension | Rescued a captive Derelict 3777 | -6/Extension | Rescued A7 3781 | -6/Extension | Rescued a captive Derelict 3782 | -6/Extension | Rescued a captive Derelict 3787 | -6/Extension | Rescued a captive Derelict 3788 | -6/Extension | Rescued a captive Derelict 3832 | -6/Extension | Identified exit to Cetus 3832 | -6/Extension | Discovered exit to Cetus (range 6) 3854 | -6/Extension | Entered Cetus 3854 | -6/Cetus | Accompanied by 8 allies (A7) 3859 | -6/Cetus | Acquired a Cetus Manufacturing Module code from A7 3868 | -6/Cetus | Spotted Cetus Guard 3868 | -6/Cetus | Spotted Cetus Guard 3873 | -6/Cetus | Spotted Cetus Guard 3874 | -6/Cetus | Spotted Cetus Guard 3881 | -6/Cetus | Allies destroyed Cetus Guard 3883 | -6/Cetus | Allies destroyed Cetus Guard 3895 | -6/Cetus | Allies destroyed Cetus Guard 3897 | -6/Cetus | Allies destroyed Cetus Guard 3913 | -6/Cetus | Started Cetus Manufacturing Module 3938 | -6/Cetus | Manufactured an Enhanced Grunt 3963 | -6/Cetus | Manufactured an Enhanced Grunt 3988 | -6/Cetus | Manufactured an Enhanced Grunt 4013 | -6/Cetus | Manufactured an Enhanced Grunt 4038 | -6/Cetus | Manufactured an Enhanced Grunt 4041 | -6/Cetus | Cetus Manufacturing Module disabled 4063 | -6/Cetus | Identified exit to Archives 4063 | -6/Cetus | Discovered exit to Archives (range 15) 4085 | -6/Cetus | Spotted Cetus Guard 4086 | -6/Cetus | Spotted Cetus Guard 4104 | -6/Cetus | Spotted Cetus Guard 4107 | -6/Cetus | Allies destroyed Cetus Guard 4118 | -6/Cetus | Allies destroyed Cetus Guard 4119 | -6/Cetus | Allies destroyed Cetus Guard 4127 | -6/Cetus | Discovered exit to Factory (range 16) 4130 | -6/Cetus | Met Revision 17 4181 | -6/Cetus | Entered Archives 4181 | -6/Archives | Accompanied by 7 allies (A7) 4256 | -6/Archives | Identified exit to Hub_04(d) 4256 | -6/Archives | Discovered exit to Hub_04(d) (range 16) 4289 | -6/Archives | Entered Hub_04(d) 4289 | -6/Hub_04(d) | Accompanied by 4 allies 4427 | -6/Hub_04(d) | Discovered exit to Factory (range 11) 4428 | -6/Hub_04(d) | Disrupted transfer network 4460 | -6/Hub_04(d) | Network Hub disabled 4478 | -6/Hub_04(d) | Entered Factory 4478 | -5/Factory | Accompanied by 4 allies 4478 | -5/Factory | Evolved 2 slots: Utility x2 4521 | -5/Factory | Identified exit to Factory 4521 | -5/Factory | Identified exit to Upper Caves 4789 | -5/Factory | Fabricated HERF Cannon (x1) 4850 | -5/Factory | Fabricated HERF Cannon (x1) 4904 | -5/Factory | Fabricated Cmb. Gravmag System (x2) 5176 | -5/Factory | Local fabrication network quarantined 5271 | -5/Factory | Fabricated Adv. Reaction Control System (x1) 5357 | -5/Factory | Entered another Factory area 5357 | -4/Factory | Accompanied by 1 ally 5357 | -4/Factory | Evolved 2 slots: Utility x2 5690 | -4/Factory | Repaired Nuclear Core 5713 | -4/Factory | Repaired Imp. Medium Armor Plating 5778 | -4/Factory | Identified exit to Upper Caves 5778 | -4/Factory | Identified exit to Research 5908 | -4/Factory | Fabricated Cmb. Gravmag System? 6352 | -4/Factory | Fabricated HERF Cannon (x1) 6563 | -4/Factory | Fabricated Hcp. Storage Unit (x1) 6775 | -4/Factory | Local fabrication network quarantined 6857 | -4/Factory | First assault squad dispatched 6862 | -4/Factory | Build established: Machinist-Mutant 6903 | -4/Factory | Entered Upper Caves 6996 | -4/Upper Caves | System corruption reached 10% 7074 | -4/Upper Caves | Identified exit to Upper Caves 7074 | -4/Upper Caves | Discovered exit to Upper Caves (range 11) 7080 | -4/Upper Caves | Entered another Upper Caves area 7166 | -4/Upper Caves | Found Alien Artifact 7403 | -4/Upper Caves | Learned Research security intel 7448 | -4/Upper Caves | Learned location of Armory (-3) 7457 | -4/Upper Caves | Identified exit to Warlord 7457 | -4/Upper Caves | Discovered exit to Warlord (range 16) 7465 | -4/Upper Caves | Entered Warlord 7490 | -4/Warlord | System corruption cleaned by Quarantine Array 7501 | -4/Warlord | Identified exit to Proximity Caves 7501 | -4/Warlord | Discovered exit to Proximity Caves (range 15) 7739 | -4/Warlord | Met Warlord 7764 | -4/Warlord | Warlord's base attacked by MAIN.C 8100 | -4/Warlord | Warlord forces counterattacked 8138 | -4/Warlord | Entered Proximity Caves 8141 | -3/Proximity Caves | Destroyed 10 combat bots 8342 | -3/Proximity Caves | Discovered exit to Research (range 5) 8344 | -3/Proximity Caves | Entered Research 8344 | -3/Research | Evolved 2 slots: Power x1, Propulsion x1 8411 | -3/Research | Repaired Adv. Reaction Control System 8426 | -3/Research | Repaired Imp. Medium Armor Plating 8513 | -3/Research | Fabricated Cmb. Gravmag System (x2) 8754 | -3/Research | Local fabrication network quarantined 8782 | -3/Research | Spotted B-86 Titan 9588 | -3/Research | Repaired Adv. Reaction Control System 9750 | -3/Research | Build established: Scavenger-Mutant 9837 | -3/Research | Identified exit to Armory 9837 | -3/Research | Identified exit to Quarantine 10070 | -3/Research | Entered Quarantine 10093 | -3/Quarantine | Identified exit to Research 10101 | -3/Quarantine | Found Alien Energy Cannon 10101 | -3/Quarantine | Identified Core Cannon 10122 | -3/Quarantine | Cryocooling Duct disabled 10137 | -3/Quarantine | Ambient heat levels rising (+20) 10137 | -3/Quarantine | Non-combat units ordered to evacuate 10155 | -3/Quarantine | Found Alien Artifact 10155 | -3/Quarantine | Identified Phase Redirector 10173 | -3/Quarantine | Scanned by Researcher 10294 | -3/Quarantine | Found Alien Artifact 10294 | -3/Quarantine | Identified Terrabomb 10294 | -3/Quarantine | Used Terrabomb 10297 | -3/Quarantine | Found Terrabomb 10425 | -3/Quarantine | Found Alien Artifact 10425 | -3/Quarantine | Identified Stasis Generator 10510 | -3/Quarantine | Found Alien Artifact 10510 | -3/Quarantine | Identified Subatomic Replicator 10685 | -3/Quarantine | Build established: Generator-Mutant 10840 | -3/Quarantine | System corruption reached 10% 10875 | -3/Quarantine | Lost 4 parts (1p2n1u) 10911 | -3/Quarantine | Entered Research 10911 | -2/Research | Warlord forces began assault on 0b10 10911 | -2/Research | Evolved 2 slots: Utility x2 10918 | -2/Research | Identified exit to Testing 10918 | -2/Research | Discovered exit to Testing (range 7) 10953 | -2/Research | Found Prototype Processor 10953 | -2/Research | Identified Exp. Targeting Computer 11021 | -2/Research | Research machine network offline 11185 | -2/Research | Spotted B-90 Cyclops 11248 | -2/Research | Build established: Scavenger-Mutant 11298 | -2/Research | Borebot progress halted 11430 | -2/Research | Borebot progress halted 11517 | -2/Research | Borebot progress halted 11535 | -2/Research | Spotted Executioner 11543 | -2/Research | Destroyed Executioner 11596 | -2/Research | Met up with Warlord 11728 | -2/Research | Spotted Striker 11803 | -2/Research | Spotted Striker 11809 | -2/Research | Destroyed Striker 11816 | -2/Research | Spotted Executioner 11818 | -2/Research | Spotted Striker 11818 | -2/Research | Spotted Executioner 11824 | -2/Research | Destroyed Executioner 11843 | -2/Research | Destroyed Executioner 11875 | -2/Research | Lost 5 parts (1p1u3w) 11976 | -2/Research | Spotted Striker 11992 | -2/Research | Destroyed Striker 12061 | -2/Research | Spotted Executioner 12087 | -2/Research | Spotted Executioner 12117 | -2/Research | Entered Testing 12297 | -2/Testing | Identified exit to Access 12444 | -2/Testing | Spotted PY-AJBABP8RR8 12457 | -2/Testing | Destroyed PY-AJBABP8RR8 12614 | -2/Testing | Entered Access 12614 | -1/Access | Accompanied by 1 ally 12614 | -1/Access | Evolved 2 slots: Utility x1, Weapon x1 12680 | -1/Access | Spotted B-99 Colossus 12966 | -1/Access | P-80 Master assimilated allied Technician 9a 13158 | -1/Access | Spotted B-99 Colossus 13266 | -1/Access | Build established: Scavenger-Gunner 13557 | -1/Access | Destroyed 10 combat bots 13631 | -1/Access | Lost 4 parts (1p2u1w) 13718 | -1/Access | Released all parts (17) 13721 | -1/Access | System corruption reached 10% 13747 | -1/Access | Lost 4 parts (1p1n2u) 13767 | -1/Access | Core integrity fell below 50% 13799 | -1/Access | Core integrity fell below 20% 13830 | -1/Access | Destroyed by S-43 Plague with Heavy Machine Gun Last Messages --------------- 13748_ Slug penetrates Wall. 13749_ Penetrated by Slug. 13754_ Slug penetrates Wall. 13756_ Penetrated by Slug. 13777_ System corrupted: Energy discharge (-39). 13778_ Slug penetrates Swarm Drone. 13778_ Penetrated by Slug. 13800_ Slammed into K-01 Serf. 13800_ K-01 Serf destroyed. 13801_ Acquired 30 matter. 13802_ System corrupted: Heat flow error (+180). 13802_ U-05 Engineer lays Concrete. 13806_ Penetrated by Slug. 13814_ ALERT: Rogue bot located, Programmers report to Access Zone 2Q. 13814_ Penetrated by Slug. 13818_ Slug penetrates K-01 Serf. 13819_ Penetrated by Slug. 13823_ Slammed into S-43 Plague. 13824_ Penetrated by Slug. 13825_ Slug penetrates Wall. Map ----- +----------------------------------------------------+ | ????????????????????????# #?????????????????????? | | ????????????????????????# #?????????????????????? | | ????????????????????????# #?????????????????????? | | ????????????????????????# #?????????????????????? | | ????????????????????????# #?????????????????????? | | ???????????????? "????# #?????????????????????? | | ??????????????? * """ # #?????????????????????? | | ??????????????# " / #?????????????????????? | | ??????????????# # #?????????????????????? | | ??????????????# ?# #?????????????????????? | | ??????????????# ??# n#?????????????????????? | | ??????????????# ????# #?????????????????????? | | #####?????????#####?????# #?????????????????????? | | #???????????????????# #?????????????????????? | | #???????????????????#w%#?????????????????????? | | ] #???????????????????#k%#?????????????????????? | | #???????????????????#s #?????????????????????? | | ]= #??????????????????##sY##????????????????????? | | #??????????????????# s #????????????????????? | | #??????????????????# #????????????????????? | | #??????????????????# +????????????????????? | | #??????????????????# #????????????????????? | | #??????????????????## k##????????????????????? | | #???????????????????# #?????????????????????? | | #???????????????????# #?????????????????????? | | #####???????????????????#@ #?????????????????????? | | ????????????????????????# #?????????????????????? | | ????????????????????????# #?????????????????????? | | ????????????????????????# #?????????????????????? | | ???????????????????????? ?????????????????????? | | ???????????????????????? ?????????????????????? | | ????????????????????????#####????????????????????? | | ?????????????????????????????????????????????????? | | ?????????????????????????????????????????????????? | | ?????????????????????????????????????????????????? | | ?????????????????????????????????????????????????? | | ?????????????????????????????????????????????????? | | ?????????????????????????????????????????????????? | | ?????????????????????????????????????????????????? | | ?????????????????????????????????????????????????? | | ?????????????????????????????????????????????????? | | ?????????????????????????????????????????????????? | | ?????????????????????????????????????????????????? | | ?????????????????????????????????????????????????? | | ?????????????????????????????????????????????????? | | ?????????????????????????????????????????????????? | | ?????????????????????????????????????????????????? | | ?????????????????????????????????????????????????? | | ?????????????????????????????????????????????????? | | ?????????????????????????????????????????????????? | +----------------------------------------------------+ Best States ------------- Heat Dissipation 99 Coolant Potential 120 Energy Generation 58 Energy Capacity 2410 Matter Stores 300 Matter Capacity 300 Sight Range 16 Terrain Scan Range 16 Terrain Scan Density 85 Jamming Range 16 Armor Coverage 975 Resistance: KI 35 Resistance: TH 35 Resistance: EX 35 Resistance: EM 35 Resistance: I 35 Resistance: S 35 Resistance: P 35 Evasion (%) 69 Targeting Accuracy 8 Target Analysis 8 Core Analysis 10 Recoil Reduction 2 Offensive Hacking 32 Item Schematics ----------------- Imp. Hover Unit | -9/Materials | Hacked Hcp. Storage Unit | -9/Materials | Hacked Cld. Airjet | -6/Factory | Scanalyzed Imp. EM Pulse Cannon | -6/Factory | Scanalyzed KE Penetrator | -6/Extension | Hacked Cmb. Gravmag System | -5/Factory | Hacked Hyp. Coil Gun | -5/Factory | Hacked Med. Storage Unit | -5/Factory | Hacked HERF Cannon | -5/Factory | Hacked Q-thruster | -3/Quarantine | Hacked Robot Schematics ------------------ T-07 Excavator | -4/Factory | Hacked Fabricated ------------ Imp. Hover Unit | x2 | -6/Factory Imp. Hover Unit | x2 | -6/Factory HERF Cannon | x1 | -5/Factory HERF Cannon | x1 | -5/Factory Cmb. Gravmag System | x2 | -5/Factory Adv. Reaction Control System | x1 | -5/Factory | Preloaded Cmb. Gravmag System | x2 | -4/Factory HERF Cannon | x1 | -4/Factory Hcp. Storage Unit | x1 | -4/Factory Cmb. Gravmag System | x2 | -3/Research Alien Tech Used ----------------- Core Cannon Phase Redirector Terrabomb Stasis Generator Subatomic Replicator Achievements -------------- Revising The Future Shocking Conclusion Challenges ------------ None Game ------ Seed DisruptorGhostCoupler Manual? 0 Play Time 03:12:06 Cumulative 189.5 hours Start 2020.12.24 @ 22:41:54 End 2020.12.25 @ 14:05:48 Sessions 3 Manual Loads 0 Difficulty Explorer Special Mode None Game No. 151 Rogue 42 Adventurer 53 Explorer 56 Win Type - Total 11 Types 11/0/0/0/0/0/0/0/0 Lore% 67 Gallery% 78 Achievement% 60 Wizard Run 0 Options --------- ASCII 1 Keyboard 0 Movement Numpad Keybinds 0 Fullscreen 2 Font 18/TerminusBold Map View 76x50 Tactical HUD 1 Map Filters NONE Filters NONE Steam 1 RUN: 31adcd24-5562-498a-b3dc-75dda5434996